Cogmind - Beta 17 @@@ ROGUE MODE // 2026.07.01 @ 17:08:06 Player: THN-L0C Result: Destroyed by WE-9C8(R) with Subdweller Machine Gun Performance ------------- Evolutions (0) 0 Regions Visited (2) 400 Robots Destroyed (35) 175 Value Destroyed (835) 835 Prototype IDs (0) 0 Alien Tech Used (0) 0 Bonus (0) 0 TOTAL SCORE: 1410 Bonus ------- None Cogmind --------- Core Integrity 0/250 Matter 284/300 Energy 151/250 System Corruption 0% Temperature Cool (0) Movement Rolling (107) Ox1 Location -10/Subcaves Parts ------- > --- POWER (1) -------- Ion Engine > --- PROPULSION (2) --- Wheel Subdweller Monowheel > --- UTILITY (2) ------ Large Storage Unit Makeshift Thermal Plating > --- WEAPON (2) ------- Beam Rifle Subdweller Machine Gun > --- INVENTORY (15) --- Light Humpback Medium Matter Pod (100) Medium Matter Pod (100) Large Matter Pod (150) Seismic Detector Utility Shielding Makeshift Light Armor Plating Makeshift System Shield Subdweller Machine Gun Mining Laser Peak State ------------ > --- POWER ------------ Makeshift Power Source > --- PROPULSION ------- Aluminum Leg Aluminum Leg > --- UTILITY ---------- Large Storage Unit Makeshift Thermal Plating > --- WEAPON ----------- Riot Gun Beam Rifle > --- INVENTORY -------- Ion Engine Wheel Subdweller Monowheel Light Humpback Medium Matter Pod Medium Matter Pod Large Matter Pod Seismic Detector Utility Shielding Makeshift Light Armor Plating Makeshift System Shield Subdweller Machine Gun Mining Laser [Rating: 18] Favorites ----------- Power Ion Engine Engine Ion Engine Propulsion Aluminum Leg Leg Aluminum Leg Wheel Wheel Utility Large Storage Unit Device Seismic Detector Storage Large Storage Unit Protection Power Shielding Weapon Beam Cannon Energy Gun Riot Gun Energy Cannon Beam Cannon Ballistic Gun Light Assault Rifle Launcher Grenade Launcher Special Weapon Mining Laser Build | -11 -10 -10 ------- Run | Yrd Mat Sub Slots Evolved . | . . . Power . | . . . Propulsion . | . . . Utility . | . . . Weapon . | . . . Parts Attached 25 | 7 11 7 Power 5 | 1 3 1 Engine 5 | 1 3 1 Core . | . . . Reactor . | . . . Propulsion 6 | 2 2 2 Treads . | . . . Leg 2 | . 2 . Wheel 4 | 2 . 2 Hover . | . . . Flight . | . . . Utility 6 | 2 3 1 Device 1 | 1 . . Storage 2 | 1 1 . Processor . | . . . Hackware . | . . . Protection 3 | . 2 1 Artifact . | . . . Weapon 8 | 2 3 3 Energy Gun 2 | . . 2 Energy Cannon 1 | . 1 . Ballistic Gun 3 | 2 . 1 Ballistic Cannon . | . . . Launcher 1 | . 1 . Special Weapon 1 | . 1 . Impact Weapon . | . . . Slashing Weapon . | . . . Piercing Weapon . | . . . Special Melee Weapon . | . . . Unidentified Prototypes . | . . . Parts Lost 11 | . 6 5 Power 2 | . 1 1 Propulsion 3 | . 2 1 Utility 1 | . 1 . Weapon 5 | . 2 3 Highest Loss Streak 4 | . 4 3 To Critical Strikes . | . . . Average Backups 9 | . 8 13 Power 1 | . 1 1 Propulsion . | . . 1 Utility 6 | . 5 8 Weapon 1 | . 1 2 Tool/Special . | . . . Unused Backups 14 | . 2 12 Power . | . . . Propulsion . | . . . Utility 12 | . 1 11 Weapon 2 | . 1 1 Tool/Special . | . . . Average Slot Usage (%) 94 | . 92 98 Engine 13 | . 13 13 Leg 16 | . 11 26 Wheel 7 | . 9 . Device 1 | . 2 . Storage 14 | . 14 14 Protection 12 | . 11 14 Energy Gun 1 | . . 4 Energy Cannon 9 | . 8 11 Ballistic Gun 9 | . 13 . Launcher 7 | . 6 9 Peak Build Rating 18 | 7 8 18 Average Rating 8 | 5 6 11 On Entrance 5 | . 7 8 Avg Prop Armor Cover (%) . | . . . Naked Turns . | . . . Heaviest Build 36 | 14 32 36 Greatest Support 30 | 26 26 30 Greatest Overweight (x) 10 | . 10 1 Average Overweight (x) 1 | . 1 1 Largest Inventory Capacity 15 | 8 15 15 Average Capacity 12 | 7 12 15 Most Carried 15 | 2 14 15 Average Carried 9 | . 8 14 Final Capacity 15 | 8 15 15 Final Carried 13 | 2 13 11 Class Distribution -------------------- 100% | Mutant Dominant Class ---------------- Mutant | -10/Materials Mutant | -10/Subcaves Resources | -11 -10 -10 ----------- Run | Yrd Mat Sub Matter Collected 1225 | 391 624 210 Remotely . | . . . Salvage Created 1162 | 213 699 250 Parts 72 | 12 41 19 Haulers Intercepted 2 | . 2 . Recyclers Shooed . | . . . Parts Field Recycled . | . . . Retrieved Matter . | . . . Parts Self-Destructed 3 | . . 3 Prevented 1 | . . 1 Parts Restored . | . . . Kills | -11 -10 -10 ------- Run | Yrd Mat Sub Combat Hostiles Destroyed 19 | . 12 7 Guns 8 | . 6 2 Cannons 6 | . 5 1 AOE 5 | . 1 4 Classes Destroyed 10 | 3 4 3 Worker 4 | 2 2 . Builder 1 | . 1 . Tunneler 6 | 4 2 . Hauler 2 | . 2 . Recycler 1 | 1 . . Watcher 2 | . 2 . Grunt 12 | . 12 . Sentry 1 | . . 1 Artisan 1 | . . 1 Subdweller 6 | . . 6 Best Kill Streak 6 | 6 4 2 Combat Bots Only 4 | . 4 2 Max Kills in Single Turn 2 | 2 1 1 Gunslinging . | . . . Exploded 1 | . 1 1 Melee . | . . . Uniques/NPCs Destroyed . | . . . Combat | -11 -10 -10 -------- Run | Yrd Mat Sub Hostile Shots Fired 121 | . 78 43 Missed 37 | . 20 17 Hits 84 | . 58 26 Projectile 84 | . 58 26 AOE 1 | . 1 . Critical Strikes 2 | . 2 . Damage Taken 1280 | . 732 548 Core 260 | . 82 178 Absorbed by Shields . | . . . Redirected to Shielding 11 | . 6 5 Ignored by Resistances 4 | . . 4 Core Remaining (%) 100 | 100 . . Volleys Fired 157 | 18 106 33 Largest 2 | 2 2 2 Hottest 110 | 40 100 110 Shots Fired 238 | 36 148 54 Gun 133 | 36 69 28 Cannon 83 | . 71 12 Launcher 16 | . 4 12 Special 6 | . 4 2 Kinetic 113 | 36 69 8 Thermal 99 | . 75 24 Explosive 16 | . 4 12 Electromagnetic 10 | . . 10 Robot Hit Streak 20 | 15 20 19 Robot Miss Streak 4 | 2 4 2 Penetration Max . | . . . Secondary Targets 1 | . 1 . Max Gunslinging Chain 1 | . 1 . Shots Hit Robots 148 | 26 80 42 Core Hits 57 | 11 32 14 Critical Kills . | . . . Critical Parts Destroyed . | . . . Critical Strikes 1 | . . 1 Burn 1 | . . 1 Melee Attacks . | . . . Impact . | . . . Slashing . | . . . Piercing . | . . . Sneak Attacks . | . . . Combat Hostiles . | . . . Follow-up Attacks . | . . . Damage Inflicted 2503 | 271 1147 1085 Guns 1080 | 271 405 404 Cannons 785 | . 662 123 Explosions 638 | . 80 558 Melee . | . . . Ramming . | . . . Kinetic 836 | 271 405 160 Thermal 918 | . 662 256 Explosive 638 | . 80 558 Electromagnetic 111 | . . 111 Impact . | . . . Slashing . | . . . Piercing . | . . . Highest Corruption . | . . . Average Corruption . | . . . Corruption Purged . | . . . Corruption Blocked . | . . . Overload Shots . | . . . Overflow Damage 15 | . 15 . Projectiles 15 | . 15 . Explosions . | . . . Melee . | . . . Knockbacks . | . . . Impact . | . . . Kinetic . | . . . Secondary . | . . . Self-Inflicted Damage 32 | . . 32 Shots 1 | . . 1 Rammed . | . . . Targets Rammed . | . . . Kicked . | . . . Crushed . | . . . Highest Temperature 279 | . 279 27 Average Temperature 54 | . 58 9 Received Heat Transfer 450 | . 426 24 Siege Activations . | . . . Martial Activations . | . . . Shielding Activations . | . . . Robots Disrupted . | . . . Combat Hostiles . | . . . Robots Corrupted . | . . . Combat Hostiles . | . . . Parts Fried . | . . . Impact Corruptions . | . . . Robots Melted . | . . . Combat Hostiles . | . . . Parts Melted 3 | . 3 . Heat Transferred 2072 | . 1406 666 Parts Sabotaged . | . . . Parts Stolen . | . . . Parts Stripped . | . . . Power Chain Reactions . | . . . Alert | -11 -10 -10 ------- Run | Yrd Mat Sub Maximum Alert Level . | . . . Low Security (%) 100 | 100 100 . Level 1 . | . . . Level 2 . | . . . Level 3 . | . . . Level 4 . | . . . Level 5 . | . . . High Security . | . . . Max Security . | . . . Peak Influence 129 | 15 129 . Initial . | . . . Average 60 | 4 64 . Influence Increases 666 | 35 611 20 Destroy 0b10 Robot/C 260 | . 240 20 Destroy 0b10 Robot/NC 80 | 35 45 . Destroy Leader 58 | . 58 . Successful Hack 33 | . 33 . Select Force Hacks 60 | . 60 . Disable Machine 15 | . 15 . Destroy Structure 25 | . 25 . Lose Combat Pursuer 135 | . 135 . Influence Decreases 666 | 35 551 80 Entered New Map 29 | . . 29 Time Decay 593 | 35 507 51 Lost Part 44 | . 44 . Squads Dispatched 3 | . 3 . Investigation 3 | . 3 . Extermination . | . . . Reinforcement . | . . . Assault . | . . . Garrison . | . . . Intercept . | . . . Searches Triggered . | . . . Construction Impeded . | . . . Haulers Reinforced . | . . . Active Scanning Responses . | . . . Cargo Convoy Interrupts . | . . . Stealth | -11 -10 -10 --------- Run | Yrd Mat Sub Distress Signals 1 | . 1 . Communications Jammed . | . . . Distress Signals . | . . . Times Spotted 42 | . 34 8 Peak Tracking Total 6 | . 6 2 Tactical Retreats 7 | . 7 . Traps | -11 -10 -10 ------- Run | Yrd Mat Sub Traps Triggered 1 | . 1 . Indirectly . | . . . Trap Hack Attempts . | . . . Triggered . | . . . Disarmed . | . . . Reprogrammed . | . . . Reused . | . . . Traps Extracted . | . . . Installed . | . . . Triggered . | . . . Machines | -11 -10 -10 ---------- Run | Yrd Mat Sub Machines Disabled 1 | . 1 . Max in Single Turn 1 | . 1 . Machines Repaired . | . . . Machines Dismantled . | . . . Machines Sabotaged . | . . . Overloaded Fab Kills . | . . . Hacking | -11 -10 -10 --------- Run | Yrd Mat Sub Machines Accessed 9 | . 9 . Terminals 7 | . 7 . Fabricators . | . . . Repair Stations . | . . . Recycling Units 2 | . 2 . Scanalyzers . | . . . Garrison Access . | . . . Total Hacks 34 | . 34 . Successful 15 | . 15 . Failed 19 | . 19 . Catastrophic . | . . . Database Lockouts . | . . . Manual 29 | . 29 . Terminals 32 | . 32 . Fabricators . | . . . Repair Stations . | . . . Recycling Units 2 | . 2 . Scanalyzers . | . . . Garrison Access . | . . . Terminal Hacks 2 | . 2 . Locate Traps 1 | . 1 . Zone Layout 1 | . 1 . Fabricator Hacks . | . . . Repair Station Hacks . | . . . Recycling Unit Hacks . | . . . Scanalyzer . | . . . Garrison Access Hacks . | . . . Unauthorized Hacks 13 | . 13 . Terminals 11 | . 11 . Botnet 2 | . 2 . Disrupt 2 | . 2 . Operators 1 | . 1 . Skim 6 | . 6 . Fabricators . | . . . Repair Stations . | . . . Recycling Units 2 | . 2 . Tunnel 2 | . 2 . Scanalyzers . | . . . Garrison Access . | . . . Data Cores Recovered . | . . . Used . | . . . Hacking Detections 7 | . 7 . Full Trace Events . | . . . Feedback Events . | . . . Feedback Blocked . | . . . Robot Schematics Acquired . | . . . Robots Built . | . . . Authchips . | . . . Time . | . . . Total Robot Build Rating . | . . . Part Schematics Acquired . | . . . Parts Built . | . . . Authchips . | . . . Time . | . . . Total Part Build Rating . | . . . Part Studies Acquired . | . . . Parts Repaired . | . . . Time . | . . . Parts Recycled . | . . . Recycled Matter . | . . . Retrieved Matter . | . . . Retrieved Components . | . . . Parts Scanalyzed . | . . . Part Schematics Acquired . | . . . Parts Damaged . | . . . Bothacking | -11 -10 -10 ------------ Run | Yrd Mat Sub Used RIF Installer . | . . . Robots Hacked . | . . . Non-combat . | . . . Combat . | . . . Robot Hacks Applied . | . . . Relay Couplers Released . | . . . Fabnet Peak Effective % . | . . . Robots Rewired . | . . . Allies Hacked . | . . . Hacks Repelled . | . . . Allies | -11 -10 -10 -------- Run | Yrd Mat Sub Total Allies . | . . . Largest Group . | . . . Highest-Rated Group . | . . . Highest-Rated Ally . | . . . Total Orders . | . . . Ally Attacks . | . . . Total Damage . | . . . Kills . | . . . Allies Corrupted . | . . . Allies Melted . | . . . Intel | -11 -10 -10 ------- Run | Yrd Mat Sub Active Infowar (turns) 363 | 26 337 . Seismic 363 | 26 337 . Robot Analysis Total . | . . . Derelict Logs Recovered . | . . . Drone Launches . | . . . Drone Recoveries . | . . . Exploration | -11 -10 -10 ------------- Run | Yrd Mat Sub Turns Passed 2860 | 123 1944 793 Spaces Moved 1288 | 68 863 357 Core 11 | 8 3 . Treads . | . . . Legs 632 | . 285 347 Wheels 645 | 60 575 10 Hover . | . . . Flight . | . . . Fastest Speed 50 | 50 90 107 Average Speed 145 | 86 132 187 Slowest Speed 550 | 100 550 190 Overloaded Moves . | . . . Propulsion Burnouts . | . . . Robots Hopped . | . . . Potential Cave-ins . | . . . Cave-ins Triggered . | . . . Exploration Rate (%) 41 | 5 92 28 Regions Visited 2 Branch Regions 1 Pre-discovered Areas 2 | . 2 . Known Exits Taken . | . . . Unknown Exits Taken 2 | 1 1 . Scrap Searched 6 | . . 6 Spaces Dug 2 | . 2 . Terrain Destroyed 54 | . 23 31 Melee . | . . . Projectile 4 | . 4 . AOE 50 | . 19 31 Terrain Rammed . | . . . Walls Destroyed . | . . . Machines Disabled . | . . . Actions | -11 -10 -10 --------- Run | Yrd Mat Sub Total 2034 | 96 1511 427 Wait 526 | 2 513 11 Move 1286 | 67 862 357 Hop . | . . . Pick Up 24 | 2 13 9 Fast Attach 11 | 7 4 . Attach 7 | . 2 5 Detach . | . . . Swap 12 | . 8 4 Drop 11 | . 3 8 Fire 157 | 18 106 33 Melee . | . . . Ram . | . . . Kick . | . . . Crush . | . . . Escape Stasis . | . . . Rewire . | . . . Trap . | . . . Miscellaneous . | . . . Route ------- -11/Scrapyard -10/Materials (discovered 6 exits: *Mat x3 / *Min x2 / [*Sub]) -10/Subcaves (discovered 2 exits: [*Mat] / [*Scr]) History --------- Turn | Location | Event 6 | -11/Scrapyard | Discovered new exit (range 14) 124 | -11/Scrapyard | Entered Materials 267 | -10/Materials | Discovered new exit (range 15) 311 | -10/Materials | Build established: Mutant 447 | -10/Materials | Discovered new exit (range 10) 625 | -10/Materials | Learned location of 1 exit from Storage 703 | -10/Materials | Learned location of 1 exit from Storage 823 | -10/Materials | Learned 2 Mines zone layouts 942 | -10/Materials | Learned Storage security intel 993 | -10/Materials | Identified exit to Materials 993 | -10/Materials | Identified exit to Mines 993 | -10/Materials | Discovered exit to Materials (range 12) 1052 | -10/Materials | Learned 2 Mines zone layouts 1264 | -10/Materials | Lost 4 parts (1p1n1u1w) 1403 | -10/Materials | Discovered new exit (range 5) 2068 | -10/Materials | Entered Subcaves 2069 | -10/Subcaves | Approached by a straggling Scientist 2089 | -10/Subcaves | Core integrity fell below 50% 2230 | -10/Subcaves | Ambushed by angry Subdweller bent on revenge 2540 | -10/Subcaves | Discovered new exit (range 13) 2817 | -10/Subcaves | Core integrity fell below 20% 2861 | -10/Subcaves | Destroyed by WE-9C8(R) with Subdweller Machine Gun Last Messages --------------- 02588_ Grenade Launcher destroyed. 02612_ Y-45 Defender destroyed. 02617_ Heat Sink self-destruct mechanism malfunctions. 02617_ Acquired 15 matter. 02621_ Lgt. Treads fries itself beyond repair. 02621_ Acquired Beam Rifle. 02697_ Beam Cannon destroyed. 02703_ 0S-C9S(R) misfires. 02703_ 0S-C9S(R) destroyed. 02760_ B2-Q07(u) deconstructs Twisted Machinery. 02820_ Riot Gun destroyed. 02828_ Aluminum Leg destroyed. 02834_ P0-IDL(R) misfires. 02835_ P0-IDL(R) suffers critical hit (Burn). 02836_ Mak. Power Source destroyed. 02841_ Destroyed Scrap Shield. 02841_ P0-IDL(R) destroyed. 02848_ Dropped Aluminum Leg. 02849_ Acquired 45 matter. 02852_ Acquired Corrupted Sub. Machine Gun. Map ----- +----------------------------------------------------+ | ?????????????????????????????????????????????????? | | ?????????????????????????????????????????????????? | | ?????????????????????????????????????????????????? | | ?????????????????????????????????????????????????? | | ?????????????????????????????????????????????????? | | ?????????????????????????????????????????????????? | | ?????????????????????????????????????????????????? | | ?????????????????????????????????????????????????? | | ?????????????????????????????????????????????????? | | ?????????????????????????????????????????????????? | | ?????????????????????????????????????????????????? | | ?????????????????????????????????????????????????? | | ?????????????????????????????????????????????????? | | ?????????????????????????????????????????????????? | | ?????????????????????????????????????????????????? | | ?????????????????????????????????????????????????? | | ?????????????????????????????????????????????????? | | ?????????????????????????????????????????????????? | | ??????????????????????????????????????? ?????????? | | ????????????????????"????????????????? ??????????? | | ????????????????????? ??????????????? ???????????? | | ????????????????????##"????????????? ????????????? | | ????????????????"""?#""#####??????? ##???????????? | | ?????????????#""" """#" ###???? #???????????? | | ?????????????#" R %###?# #????????????? | | ?????????????# @ ## ##???????????? | | ?????????????????####### # %# #???????????? | | ???????????????????????#### ##???????????? | | ????????????????????# ##"## % #???????????? | | ????????????????????" """ ### #???????????? | | ????????????????????### # #"*"#### #?????????????? | | ????????????????????????##& ##### #?????????????? | | ????????????????????????#=! # #"#" ##????????????? | | ?????????????????######### " " """" ##???????????? | | ????????????????## ### "" ##??????????? | | ??????????####### #"" ###### #??????????? | | ??????????# # """##????# ##??????????? | | ??????????# # "" ""?????# #???????????? | | ??????????# # "" "###??# ##????? ##? | | ??????????# "#"# ###"### ### # | | ??????????# #######"" #? | | ??????????## # #????# """ "" #? | | ?????????????### #????### " "" ??? | | ???????????????# ###?????## #### "" ???? | | ???????????????# ##??????## ##?? " ??? | | ???????????????## !=#??????## #??### """ ??? | | ????????????????##&&#??##### #?????# ""??? | | ????????????????##%##### ## #?????? " ??? | | ???????????????##%&## # ##?????? "" ??? | | ?????????????### !* ## #?????? ##??? | +----------------------------------------------------+ Best States ------------- Heat Dissipation 25 Energy Generation 15 Energy Capacity 250 Matter Stores 300 Matter Capacity 300 Sight Range 16 Terrain Scan Density 10 Armor Coverage 150 Resistance: TH 10 Power Shielding 33 Evasion (%) 42 Item Schematics ----------------- None Robot Schematics ------------------ None Fabricated ------------ Nothing Repaired ---------- Nothing Studied --------- None Alien Tech Used ----------------- None Achievements -------------- None Challenges ------------ None Game ------ Seed SurgeNuclearMaul Manual? 0 Play Time 00:20:07 Cumulative 417.5 hours Start 2026.07.01 @ 16:51:48 End 2026.07.01 @ 17:08:06 Sessions 1 Manual Loads 0 Difficulty Rogue Special Mode None Game No. 312 Rogue 312 Adventurer 0 Explorer 0 Win Type - Total 9 Types 4/0/3/2/0/0/0/0/0/0 Lore% 78 Gallery% 73 Achievement% 52 Wizard Run 0 Options --------- Layout 2 ASCII 0 Keyboard 1 Movement Vi Keybinds 0 Fullscreen 2 Font 32/SmallcapsGlow Map View 77x44 Zoom Use 0% Tactical HUD 1 Map Filters NONE Filters NONE Steam 1 RUN: c56bd83a-2a9f-4792-aef6-2e099b540567